[Event "Titled Tuesday Blitz April 19 Late 2022"]
[White "Mikhalsky, Vladimir"]
[Black "Necula, Iulian"]
[WhiteFideId "14144352"]
[BlackFideId "1232380"]
[WhiteElo "2301"]
[BlackElo "1776"]
[Result "0-1"]
[Round "02"]
[TimeControl "180+1"]
[Date "2022.04.19"]
[WhiteClock "0:00:04"]
[BlackClock "0:00:01"]

1. c4 {[%clk 0:03:00]}  g6 {[%clk 0:03:00]} 2. d4 {[%clk 0:03:00]}  d6 {[%clk 0:03:00]} 3. e4 {[%clk 0:03:00]}  Bg7 {[%clk 0:03:00]} 4. Nc3 {[%clk 0:03:00]}  Nf6 {[%clk 0:02:59]} 5. f3 {[%clk 0:03:01]}  O-O {[%clk 0:02:58]} 6. Be3 {[%clk 0:03:01]}  c5 {[%clk 0:02:57]} 7. Nge2 {[%clk 0:02:59]}  cxd4 {[%clk 0:02:57]} 8. Nxd4 {[%clk 0:02:58]}  Nc6 {[%clk 0:02:56]} 9. Qd2 {[%clk 0:02:58]}  Nxd4 {[%clk 0:02:54]} 10. Bxd4 {[%clk 0:02:58]}  a6 {[%clk 0:02:53]} 11. Be2 {[%clk 0:02:50]}  Rb8 {[%clk 0:02:51]} 12. a4 {[%clk 0:02:48]}  Nd7 {[%clk 0:02:39]} 13. a5 {[%clk 0:02:40]}  Ne5 {[%clk 0:02:32]} 14. Nd5 {[%clk 0:02:36]}  e6 {[%clk 0:02:28]} 15. Nb6 {[%clk 0:02:15]}  Bd7 {[%clk 0:02:20]} 16. c5 {[%clk 0:02:11]}  Bb5 {[%clk 0:02:10]} 17. Bxb5 {[%clk 0:02:03]}  axb5 {[%clk 0:02:09]} 18. Qc3 {[%clk 0:01:57]}  Qh4+ {[%clk 0:01:44]} 19. g3 {[%clk 0:01:52]}  Qh5 {[%clk 0:01:35]} 20. g4 {[%clk 0:01:33]}  Qh4+ {[%clk 0:01:33]} 21. Ke2 {[%clk 0:01:31]}  Rfd8 {[%clk 0:00:24]} 22. cxd6 {[%clk 0:01:25]}  Nc4 {[%clk 0:00:13]} 23. Bxg7 {[%clk 0:01:17]}  Nxb6 {[%clk 0:00:12]} 24. axb6 {[%clk 0:01:12]}  Rbc8 {[%clk 0:00:11]} 25. Qf6 {[%clk 0:00:53]}  Rc2+ {[%clk 0:00:10]} 26. Kd3 {[%clk 0:00:53]}  Qf2 {[%clk 0:00:06]} 27. Qxd8+ {[%clk 0:00:26]}  Kxg7 {[%clk 0:00:07]} 28. Rhd1 {[%clk 0:00:25]}  Qe2+ {[%clk 0:00:07]} 29. Kd4 {[%clk 0:00:25]}  Qc4+ {[%clk 0:00:06]} 30. Ke3 {[%clk 0:00:21]}  Re2+ {[%clk 0:00:05]} 31. Kf4 {[%clk 0:00:20]}  e5+ {[%clk 0:00:05]} 32. Kg3 {[%clk 0:00:19]}  Qc2 {[%clk 0:00:03]} 33. Rg1 {[%clk 0:00:11]}  Rxh2 {[%clk 0:00:03]} 34. Raf1 {[%clk 0:00:10]}  h5 {[%clk 0:00:01]} 35. gxh5 {[%clk 0:00:09]}  Rxh5 {[%clk 0:00:01]} 36. Qe7 {[%clk 0:00:05]}  Qh2+ {[%clk 0:00:01]} 37. Kg4 {[%clk 0:00:04]}  Qh3# {[%clk 0:00:01]} 0-1


[Site "https://www.chess.com"]

[Event "Titled Tuesday Blitz April 19 Late 2022"]
[White "Mirza, Diana"]
[Black "Karwowski, Kacper"]
[WhiteFideId "2503999"]
[BlackFideId "1126032"]
[WhiteElo "1813"]
[BlackElo "2261"]
[Result "1-0"]
[Round "02"]
[TimeControl "180+1"]
[Date "2022.04.19"]
[WhiteClock "0:00:22"]
[BlackClock "0:00:02"]

1. b4 {[%clk 0:03:00]}  d5 {[%clk 0:02:57]} 2. Bb2 {[%clk 0:02:57]}  Nf6 {[%clk 0:02:56]} 3. e3 {[%clk 0:02:55]}  Bf5 {[%clk 0:02:40]} 4. c4 {[%clk 0:02:54]}  e6 {[%clk 0:02:36]} 5. c5 {[%clk 0:02:48]}  Nbd7 {[%clk 0:02:27]} 6. Nf3 {[%clk 0:02:44]}  Be7 {[%clk 0:02:25]} 7. Be2 {[%clk 0:02:43]}  h6 {[%clk 0:02:25]} 8. O-O {[%clk 0:02:41]}  O-O {[%clk 0:02:25]} 9. d4 {[%clk 0:02:30]}  Ne4 {[%clk 0:02:20]} 10. Nbd2 {[%clk 0:02:21]}  Ndf6 {[%clk 0:02:19]} 11. Ne5 {[%clk 0:02:06]}  Nxd2 {[%clk 0:02:04]} 12. Qxd2 {[%clk 0:02:03]}  Ne4 {[%clk 0:02:04]} 13. Qd1 {[%clk 0:01:59]}  f6 {[%clk 0:01:50]} 14. Nd3 {[%clk 0:01:52]}  Qe8 {[%clk 0:01:42]} 15. f3 {[%clk 0:01:48]}  Ng5 {[%clk 0:01:41]} 16. h4 {[%clk 0:01:46]}  Nf7 {[%clk 0:01:31]} 17. g4 {[%clk 0:01:36]}  Bh7 {[%clk 0:01:31]} 18. Nf4 {[%clk 0:01:36]}  Qd7 {[%clk 0:01:30]} 19. Bd3 {[%clk 0:01:23]}  f5 {[%clk 0:00:54]} 20. Qc2 {[%clk 0:01:12]}  Bxh4 {[%clk 0:00:51]} 21. Kg2 {[%clk 0:01:11]}  Bg5 {[%clk 0:00:45]} 22. Rae1 {[%clk 0:01:02]}  c6 {[%clk 0:00:37]} 23. Rh1 {[%clk 0:00:56]}  Rae8 {[%clk 0:00:35]} 24. Nh3 {[%clk 0:00:55]}  Bd8 {[%clk 0:00:30]} 25. Rh2 {[%clk 0:00:36]}  Bc7 {[%clk 0:00:29]} 26. f4 {[%clk 0:00:35]}  g5 {[%clk 0:00:18]} 27. Reh1 {[%clk 0:00:31]}  gxf4 {[%clk 0:00:15]} 28. Nxf4 {[%clk 0:00:30]}  Bxf4 {[%clk 0:00:14]} 29. exf4 {[%clk 0:00:30]}  Re7 {[%clk 0:00:06]} 30. g5 {[%clk 0:00:30]}  Nh8 {[%clk 0:00:02]} 31. Rxh6 {[%clk 0:00:28]}  Rg7 {[%clk 0:00:02]} 32. Kf3 {[%clk 0:00:24]}  Bg6 {[%clk 0:00:02]} 33. Rxh8+ {[%clk 0:00:22]} 1-0


[Site "https://www.chess.com"]

[Event "Titled Tuesday Blitz April 19 Late 2022"]
[White "Nasuta, Grzegorz"]
[Black "Paravyan, David"]
[WhiteFideId "1141686"]
[BlackFideId "4194985"]
[WhiteElo "2396"]
[BlackElo "2569"]
[Result "0-1"]
[Round "02"]
[TimeControl "180+1"]
[Date "2022.04.19"]
[WhiteClock "0:00:14"]
[BlackClock "0:00:19"]

1. d4 {[%clk 0:02:59]}  Nf6 {[%clk 0:03:00]} 2. Nf3 {[%clk 0:02:56]}  g6 {[%clk 0:03:00]} 3. Bf4 {[%clk 0:02:49]}  Bg7 {[%clk 0:02:59]} 4. h3 {[%clk 0:02:49]}  c5 {[%clk 0:02:56]} 5. c3 {[%clk 0:02:45]}  cxd4 {[%clk 0:02:46]} 6. cxd4 {[%clk 0:02:43]}  O-O {[%clk 0:02:46]} 7. e3 {[%clk 0:02:41]}  d6 {[%clk 0:02:39]} 8. Be2 {[%clk 0:02:39]}  Nc6 {[%clk 0:02:35]} 9. O-O {[%clk 0:02:37]}  Nd5 {[%clk 0:02:34]} 10. Bh2 {[%clk 0:02:36]}  e5 {[%clk 0:02:29]} 11. Nc3 {[%clk 0:02:34]}  Be6 {[%clk 0:02:22]} 12. Qa4 {[%clk 0:02:21]}  exd4 {[%clk 0:02:21]} 13. exd4 {[%clk 0:02:20]}  Qd7 {[%clk 0:02:15]} 14. Qa3 {[%clk 0:01:41]}  Nxd4 {[%clk 0:02:12]} 15. Nxd4 {[%clk 0:01:39]}  Bxd4 {[%clk 0:02:10]} 16. Nxd5 {[%clk 0:01:33]}  Bxd5 {[%clk 0:02:10]} 17. Qd3 {[%clk 0:01:33]}  Bxb2 {[%clk 0:01:22]} 18. Qxd5 {[%clk 0:01:21]}  Bxa1 {[%clk 0:01:22]} 19. Rxa1 {[%clk 0:01:22]}  Qe7 {[%clk 0:01:07]} 20. Bf3 {[%clk 0:01:17]}  Rfe8 {[%clk 0:01:08]} 21. Bg3 {[%clk 0:00:53]}  Qf6 {[%clk 0:01:03]} 22. Rd1 {[%clk 0:00:52]}  b6 {[%clk 0:00:52]} 23. Qb3 {[%clk 0:00:35]}  Rad8 {[%clk 0:00:51]} 24. Bd5 {[%clk 0:00:34]}  Re7 {[%clk 0:00:41]} 25. Qc4 {[%clk 0:00:31]}  Rde8 {[%clk 0:00:39]} 26. Kh2 {[%clk 0:00:28]}  h5 {[%clk 0:00:35]} 27. Bf3 {[%clk 0:00:18]}  Re1 {[%clk 0:00:19]} 28. Rxe1 {[%clk 0:00:06]}  Rxe1 {[%clk 0:00:18]} 29. Qd5 {[%clk 0:00:02]}  Qa1 {[%clk 0:00:15]} 30. Bxd6 {[%clk 0:00:02]}  Rh1+ {[%clk 0:00:09]} 31. Kg3 {[%clk 0:00:02]}  Qf6 {[%clk 0:00:10]} 32. Qe5 {[%clk 0:00:01]}  Qxe5+ {[%clk 0:00:07]} 33. Bxe5 {[%clk 0:00:02]}  Rc1 {[%clk 0:00:07]} 34. Bd6 {[%clk 0:00:02]}  Rc2 {[%clk 0:00:07]} 35. a3 {[%clk 0:00:02]}  a5 {[%clk 0:00:06]} 36. Kf4 {[%clk 0:00:02]}  b5 {[%clk 0:00:06]} 37. Ke4 {[%clk 0:00:02]}  b4 {[%clk 0:00:07]} 38. axb4 {[%clk 0:00:03]}  axb4 {[%clk 0:00:08]} 39. Kd4 {[%clk 0:00:03]}  b3 {[%clk 0:00:08]} 40. Be4 {[%clk 0:00:03]}  Rxf2 {[%clk 0:00:08]} 41. Kc3 {[%clk 0:00:03]}  b2 {[%clk 0:00:09]} 42. Ba3 {[%clk 0:00:03]}  Re2 {[%clk 0:00:08]} 43. Bd3 {[%clk 0:00:03]}  Rxg2 {[%clk 0:00:07]} 44. Bxb2 {[%clk 0:00:04]}  Rg3 {[%clk 0:00:07]} 45. Kd4 {[%clk 0:00:05]}  Rxh3 {[%clk 0:00:07]} 46. Bc1 {[%clk 0:00:06]}  Rg3 {[%clk 0:00:07]} 47. Be3 {[%clk 0:00:07]}  h4 {[%clk 0:00:07]} 48. Ke4 {[%clk 0:00:08]}  h3 {[%clk 0:00:07]} 49. Bf4 {[%clk 0:00:09]}  h2 {[%clk 0:00:04]} 50. Bxg3 {[%clk 0:00:07]}  h1=Q+ {[%clk 0:00:05]} 51. Ke3 {[%clk 0:00:08]}  Qg2 {[%clk 0:00:05]} 52. Bf4 {[%clk 0:00:09]}  Qh3+ {[%clk 0:00:05]} 53. Ke2 {[%clk 0:00:08]}  Qe6+ {[%clk 0:00:06]} 54. Be3 {[%clk 0:00:08]}  Qe5 {[%clk 0:00:06]} 55. Kd2 {[%clk 0:00:09]}  Qb2+ {[%clk 0:00:06]} 56. Ke1 {[%clk 0:00:08]}  Qc3+ {[%clk 0:00:07]} 57. Ke2 {[%clk 0:00:09]}  Qb3 {[%clk 0:00:08]} 58. Bd2 {[%clk 0:00:09]}  Qe6+ {[%clk 0:00:08]} 59. Be3 {[%clk 0:00:10]}  Qd6 {[%clk 0:00:09]} 60. Kd2 {[%clk 0:00:11]}  Qd8 {[%clk 0:00:09]} 61. Ke2 {[%clk 0:00:11]}  Kh7 {[%clk 0:00:10]} 62. Kd2 {[%clk 0:00:12]}  Qe8 {[%clk 0:00:11]} 63. Ke2 {[%clk 0:00:13]}  f5 {[%clk 0:00:11]} 64. Kd2 {[%clk 0:00:14]}  Qe7 {[%clk 0:00:11]} 65. Bd4 {[%clk 0:00:14]}  Qd6 {[%clk 0:00:11]} 66. Be3 {[%clk 0:00:14]}  Qe5 {[%clk 0:00:11]} 67. Bf2 {[%clk 0:00:14]}  Qf4+ {[%clk 0:00:12]} 68. Ke2 {[%clk 0:00:15]}  Qg4+ {[%clk 0:00:12]} 69. Kd2 {[%clk 0:00:15]}  Kg7 {[%clk 0:00:13]} 70. Be3 {[%clk 0:00:15]}  Qb4+ {[%clk 0:00:14]} 71. Ke2 {[%clk 0:00:15]}  Kf6 {[%clk 0:00:14]} 72. Bd2 {[%clk 0:00:15]}  Qb2 {[%clk 0:00:14]} 73. Ke3 {[%clk 0:00:15]}  g5 {[%clk 0:00:14]} 74. Ke2 {[%clk 0:00:13]}  Qe5+ {[%clk 0:00:15]} 75. Kd1 {[%clk 0:00:13]}  Qd4 {[%clk 0:00:15]} 76. Kc2 {[%clk 0:00:13]}  Qc5+ {[%clk 0:00:15]} 77. Kd1 {[%clk 0:00:13]}  Kg6 {[%clk 0:00:15]} 78. Ke2 {[%clk 0:00:14]}  Qd5 {[%clk 0:00:16]} 79. Be3 {[%clk 0:00:13]}  g4 {[%clk 0:00:16]} 80. Bd2 {[%clk 0:00:12]}  Qe5+ {[%clk 0:00:17]} 81. Kf2 {[%clk 0:00:13]}  Qd4+ {[%clk 0:00:17]} 82. Ke2 {[%clk 0:00:13]}  Qg1 {[%clk 0:00:16]} 83. Be3 {[%clk 0:00:13]}  Qg2+ {[%clk 0:00:17]} 84. Ke1 {[%clk 0:00:14]}  Qf3 {[%clk 0:00:16]} 85. Kd2 {[%clk 0:00:14]}  g3 {[%clk 0:00:17]} 86. Be2 {[%clk 0:00:14]}  Qd5+ {[%clk 0:00:17]} 87. Ke1 {[%clk 0:00:15]}  Qe4 {[%clk 0:00:18]} 88. Kd2 {[%clk 0:00:14]}  g2 {[%clk 0:00:18]} 89. Bd3 {[%clk 0:00:13]}  Qxe3+ {[%clk 0:00:18]} 90. Kxe3 {[%clk 0:00:14]}  g1=Q+ {[%clk 0:00:19]} 0-1


[Site "https://www.chess.com"]

[Event "Titled Tuesday Blitz April 19 Late 2022"]
[White "Nathan, Nitish"]
[Black "Bilych, Olexiy"]
[WhiteFideId "30927870"]
[BlackFideId "14156504"]
[WhiteElo "2265"]
[BlackElo "2176"]
[Result "0-1"]
[Round "02"]
[TimeControl "180+1"]
[Date "2022.04.19"]
[WhiteClock "0:00:54"]
[BlackClock "0:01:22"]

1. d4 {[%clk 0:03:00]}  Nf6 {[%clk 0:02:59]} 2. Bf4 {[%clk 0:03:00]}  d5 {[%clk 0:02:58]} 3. e3 {[%clk 0:02:59]}  c5 {[%clk 0:02:59]} 4. c3 {[%clk 0:02:58]}  Nc6 {[%clk 0:02:59]} 5. Nd2 {[%clk 0:02:58]}  Bf5 {[%clk 0:02:56]} 6. Qb3 {[%clk 0:02:55]}  Qd7 {[%clk 0:02:53]} 7. Ngf3 {[%clk 0:02:53]}  c4 {[%clk 0:02:49]} 8. Qd1 {[%clk 0:02:52]}  e6 {[%clk 0:02:48]} 9. Be2 {[%clk 0:02:51]}  Bd6 {[%clk 0:02:46]} 10. Ne5 {[%clk 0:02:47]}  Qc7 {[%clk 0:02:40]} 11. Ndf3 {[%clk 0:02:40]}  Nh5 {[%clk 0:02:31]} 12. Nxc6 {[%clk 0:02:32]}  Nxf4 {[%clk 0:02:28]} 13. exf4 {[%clk 0:02:23]}  bxc6 {[%clk 0:02:12]} 14. g3 {[%clk 0:02:14]}  h6 {[%clk 0:02:06]} 15. O-O {[%clk 0:02:13]}  O-O {[%clk 0:02:06]} 16. Nd2 {[%clk 0:02:05]}  Rab8 {[%clk 0:02:05]} 17. b3 {[%clk 0:02:05]}  cxb3 {[%clk 0:02:04]} 18. axb3 {[%clk 0:02:06]}  c5 {[%clk 0:02:04]} 19. Nf3 {[%clk 0:02:01]}  Bh7 {[%clk 0:01:54]} 20. Bd3 {[%clk 0:01:46]}  Bxd3 {[%clk 0:01:47]} 21. Qxd3 {[%clk 0:01:45]}  Rxb3 {[%clk 0:01:48]} 22. Qa6 {[%clk 0:01:41]}  Rxc3 {[%clk 0:01:44]} 23. dxc5 {[%clk 0:01:37]}  Bxc5 {[%clk 0:01:42]} 24. Ne5 {[%clk 0:01:37]}  Bb6 {[%clk 0:01:37]} 25. Qe2 {[%clk 0:01:32]}  Rc2 {[%clk 0:01:35]} 26. Qg4 {[%clk 0:01:28]}  Qc5 {[%clk 0:01:35]} 27. Nd7 {[%clk 0:01:23]}  Qd4 {[%clk 0:01:24]} 28. Nxf8 {[%clk 0:01:14]}  Rxf2 {[%clk 0:01:23]} 29. Rad1 {[%clk 0:00:55]}  Rxf1+ {[%clk 0:01:22]} 30. Kxf1 {[%clk 0:00:54]}  Qf2# {[%clk 0:01:22]} 0-1


[Site "https://www.chess.com"]

[Event "Titled Tuesday Blitz April 19 Late 2022"]
[White "Nazaretyan, Tigran"]
[Black "Yoo, Christopher Woojin"]
[WhiteFideId "24162345"]
[BlackFideId "30909694"]
[WhiteElo "2225"]
[BlackElo "2105"]
[Result "1-0"]
[Round "02"]
[TimeControl "180+1"]
[Date "2022.04.19"]
[WhiteClock "0:00:56"]
[BlackClock "0:00:03"]

1. d4 {[%clk 0:03:00]}  Nf6 {[%clk 0:02:59]} 2. c4 {[%clk 0:03:00]}  g6 {[%clk 0:02:59]} 3. Nc3 {[%clk 0:02:59]}  Bg7 {[%clk 0:03:00]} 4. e4 {[%clk 0:02:59]}  d6 {[%clk 0:03:00]} 5. Nf3 {[%clk 0:03:00]}  O-O {[%clk 0:03:00]} 6. Be2 {[%clk 0:03:00]}  e5 {[%clk 0:03:01]} 7. O-O {[%clk 0:03:00]}  h6 {[%clk 0:03:02]} 8. dxe5 {[%clk 0:02:54]}  dxe5 {[%clk 0:03:01]} 9. Be3 {[%clk 0:02:53]}  Nc6 {[%clk 0:02:37]} 10. Qc1 {[%clk 0:02:46]}  Ng4 {[%clk 0:02:16]} 11. Bc5 {[%clk 0:02:44]}  Re8 {[%clk 0:02:10]} 12. Rd1 {[%clk 0:02:43]}  Nd4 {[%clk 0:02:09]} 13. h3 {[%clk 0:02:37]}  Nf6 {[%clk 0:01:39]} 14. Nxd4 {[%clk 0:02:27]}  exd4 {[%clk 0:01:40]} 15. Bxd4 {[%clk 0:02:21]}  Qe7 {[%clk 0:01:39]} 16. e5 {[%clk 0:02:19]}  Nd7 {[%clk 0:01:38]} 17. Nd5 {[%clk 0:02:17]}  Qd8 {[%clk 0:01:38]} 18. f4 {[%clk 0:02:13]}  c6 {[%clk 0:01:37]} 19. Nc3 {[%clk 0:02:06]}  Qc7 {[%clk 0:01:12]} 20. Ne4 {[%clk 0:02:03]}  Nf8 {[%clk 0:01:12]} 21. Bg4 {[%clk 0:01:59]}  Bxg4 {[%clk 0:01:05]} 22. hxg4 {[%clk 0:01:59]}  Ne6 {[%clk 0:01:05]} 23. Be3 {[%clk 0:01:55]}  g5 {[%clk 0:01:05]} 24. Nd6 {[%clk 0:01:50]}  Red8 {[%clk 0:00:55]} 25. g3 {[%clk 0:01:46]}  gxf4 {[%clk 0:00:55]} 26. gxf4 {[%clk 0:01:47]}  Bf8 {[%clk 0:00:40]} 27. c5 {[%clk 0:01:46]}  b6 {[%clk 0:00:31]} 28. b4 {[%clk 0:01:41]}  bxc5 {[%clk 0:00:31]} 29. bxc5 {[%clk 0:01:41]}  Qe7 {[%clk 0:00:27]} 30. Nf5 {[%clk 0:01:33]}  Qc7 {[%clk 0:00:27]} 31. Rd6 {[%clk 0:01:31]}  Rab8 {[%clk 0:00:17]} 32. Qd2 {[%clk 0:01:24]}  Bxd6 {[%clk 0:00:15]} 33. cxd6 {[%clk 0:01:22]}  Qd7 {[%clk 0:00:14]} 34. Nxh6+ {[%clk 0:01:22]}  Kh7 {[%clk 0:00:14]} 35. f5 {[%clk 0:01:22]}  Nf8 {[%clk 0:00:06]} 36. Qh2 {[%clk 0:01:19]}  Kg7 {[%clk 0:00:06]} 37. f6+ {[%clk 0:01:19]}  Kh8 {[%clk 0:00:01]} 38. Qh5 {[%clk 0:01:00]}  Nh7 {[%clk 0:00:01]} 39. Nxf7+ {[%clk 0:00:59]}  Kg8 {[%clk 0:00:02]} 40. Qg6+ {[%clk 0:00:59]}  Kf8 {[%clk 0:00:03]} 41. Bh6+ {[%clk 0:00:57]}  Ke8 {[%clk 0:00:03]} 42. Nh8+ {[%clk 0:00:56]} 1-0


[Site "https://www.chess.com"]

[Event "Titled Tuesday Blitz April 19 Late 2022"]
[White "Omariev, Maksim"]
[Black "Gatterer, Florian"]
[WhiteFideId "4193423"]
[BlackFideId "811688"]
[WhiteElo "2505"]
[BlackElo "2218"]
[Result "1-0"]
[Round "02"]
[TimeControl "180+1"]
[Date "2022.04.19"]
[WhiteClock "0:00:03"]
[BlackClock "0:00:01"]

1. g4 {[%clk 0:02:57]}  d6 {[%clk 0:02:48]} 2. Bg2 {[%clk 0:02:53]}  c6 {[%clk 0:02:48]} 3. h3 {[%clk 0:02:40]}  e5 {[%clk 0:02:47]} 4. c3 {[%clk 0:02:33]}  Be6 {[%clk 0:02:46]} 5. d4 {[%clk 0:02:29]}  Nd7 {[%clk 0:02:45]} 6. Nf3 {[%clk 0:02:27]}  e4 {[%clk 0:02:41]} 7. Ng5 {[%clk 0:02:27]}  d5 {[%clk 0:02:41]} 8. Qb3 {[%clk 0:02:23]}  Qb6 {[%clk 0:02:36]} 9. Bf4 {[%clk 0:02:20]}  h6 {[%clk 0:02:27]} 10. Nxe6 {[%clk 0:02:20]}  fxe6 {[%clk 0:02:28]} 11. Nd2 {[%clk 0:02:18]}  Ngf6 {[%clk 0:02:17]} 12. f3 {[%clk 0:02:17]}  exf3 {[%clk 0:02:15]} 13. Bxf3 {[%clk 0:02:16]}  Be7 {[%clk 0:02:15]} 14. Bg3 {[%clk 0:02:07]}  Qxb3 {[%clk 0:02:05]} 15. axb3 {[%clk 0:02:07]}  a6 {[%clk 0:02:05]} 16. e4 {[%clk 0:02:07]}  dxe4 {[%clk 0:02:01]} 17. Nxe4 {[%clk 0:02:08]}  Nxe4 {[%clk 0:02:01]} 18. Bxe4 {[%clk 0:02:08]}  O-O {[%clk 0:02:00]} 19. Kd2 {[%clk 0:02:01]}  Bg5+ {[%clk 0:01:58]} 20. Kc2 {[%clk 0:01:59]}  Bf4 {[%clk 0:01:58]} 21. Bf2 {[%clk 0:01:48]}  Nf6 {[%clk 0:01:56]} 22. Bd3 {[%clk 0:01:46]}  Nd5 {[%clk 0:01:55]} 23. Rae1 {[%clk 0:01:44]}  Rae8 {[%clk 0:01:49]} 24. Bg6 {[%clk 0:01:41]}  Re7 {[%clk 0:01:43]} 25. c4 {[%clk 0:01:39]}  Nb4+ {[%clk 0:01:24]} 26. Kc3 {[%clk 0:01:34]}  Bd2+ {[%clk 0:01:23]} 27. Kxd2 {[%clk 0:01:34]}  Rxf2+ {[%clk 0:01:22]} 28. Re2 {[%clk 0:01:30]}  Rxe2+ {[%clk 0:01:18]} 29. Kxe2 {[%clk 0:01:31]}  e5 {[%clk 0:01:19]} 30. Ke3 {[%clk 0:01:28]}  exd4+ {[%clk 0:01:14]} 31. Kxd4 {[%clk 0:01:29]}  b6 {[%clk 0:01:14]} 32. c5 {[%clk 0:01:06]}  Rd7+ {[%clk 0:01:01]} 33. Kc4 {[%clk 0:01:07]}  bxc5 {[%clk 0:00:57]} 34. Kxc5 {[%clk 0:01:05]}  Nd3+ {[%clk 0:00:51]} 35. Kb6 {[%clk 0:00:50]}  Ne5 {[%clk 0:00:48]} 36. Bf5 {[%clk 0:00:49]}  Rd2 {[%clk 0:00:38]} 37. Re1 {[%clk 0:00:44]}  Nd7+ {[%clk 0:00:25]} 38. Kxc6 {[%clk 0:00:42]}  Nf6 {[%clk 0:00:24]} 39. Bg6 {[%clk 0:00:34]}  Rxb2 {[%clk 0:00:22]} 40. Re7 {[%clk 0:00:20]}  Rxb3 {[%clk 0:00:18]} 41. Ra7 {[%clk 0:00:15]}  Rb8 {[%clk 0:00:17]} 42. Rxa6 {[%clk 0:00:12]}  Rc8+ {[%clk 0:00:18]} 43. Kd6 {[%clk 0:00:11]}  Rd8+ {[%clk 0:00:18]} 44. Ke7 {[%clk 0:00:10]}  Rd7+ {[%clk 0:00:16]} 45. Ke6 {[%clk 0:00:09]}  Rd8 {[%clk 0:00:16]} 46. Ra7 {[%clk 0:00:09]}  Rb8 {[%clk 0:00:15]} 47. Bf5 {[%clk 0:00:06]}  Kh8 {[%clk 0:00:11]} 48. h4 {[%clk 0:00:06]}  Kg8 {[%clk 0:00:06]} 49. g5 {[%clk 0:00:05]}  hxg5 {[%clk 0:00:06]} 50. hxg5 {[%clk 0:00:06]}  Nh7 {[%clk 0:00:06]} 51. g6 {[%clk 0:00:03]}  Nf6 {[%clk 0:00:06]} 52. Bd3 {[%clk 0:00:02]}  Kh8 {[%clk 0:00:05]} 53. Kf7 {[%clk 0:00:02]}  Rd8 {[%clk 0:00:03]} 54. Bf5 {[%clk 0:00:02]}  Rb8 {[%clk 0:00:02]} 55. Be6 {[%clk 0:00:01]}  Rd8 {[%clk 0:00:02]} 56. Ke7 {[%clk 0:00:02]}  Rb8 {[%clk 0:00:02]} 57. Bf7 {[%clk 0:00:02]}  Rc8 {[%clk 0:00:01]} 58. Ra1 {[%clk 0:00:02]}  Rb8 {[%clk 0:00:01]} 59. Rh1+ {[%clk 0:00:03]}  Nh7 {[%clk 0:00:01]} 60. Rxh7# {[%clk 0:00:03]} 1-0


[Site "https://www.chess.com"]

[Event "Titled Tuesday Blitz April 19 Late 2022"]
[White "Palacio,Igor Da Paz"]
[Black "Al-Tarboush, Ward"]
[WhiteFideId "2121140"]
[BlackFideId "7601450"]
[WhiteElo "2144"]
[BlackElo "2276"]
[Result "0-1"]
[Round "02"]
[TimeControl "180+1"]
[Date "2022.04.19"]
[WhiteClock "0:00:02"]
[BlackClock "0:02:13"]

1. e4 {[%clk 0:03:00]}  e5 {[%clk 0:02:58]} 2. Nf3 {[%clk 0:03:00]}  Nf6 {[%clk 0:02:58]} 3. Nc3 {[%clk 0:02:59]}  Nc6 {[%clk 0:02:57]} 4. Bb5 {[%clk 0:02:59]}  Bd6 {[%clk 0:02:55]} 5. d3 {[%clk 0:02:58]}  O-O {[%clk 0:02:54]} 6. O-O {[%clk 0:02:57]}  a6 {[%clk 0:02:54]} 7. Ba4 {[%clk 0:02:55]}  Nd4 {[%clk 0:02:52]} 8. Nxd4 {[%clk 0:02:49]}  exd4 {[%clk 0:02:53]} 9. Ne2 {[%clk 0:02:49]}  c5 {[%clk 0:02:48]} 10. f4 {[%clk 0:02:41]}  Bc7 {[%clk 0:02:47]} 11. Bb3 {[%clk 0:02:28]}  d5 {[%clk 0:02:44]} 12. e5 {[%clk 0:02:17]}  Ng4 {[%clk 0:02:44]} 13. h3 {[%clk 0:01:56]}  Ne3 {[%clk 0:02:42]} 14. Bxe3 {[%clk 0:01:56]}  dxe3 {[%clk 0:02:43]} 15. d4 {[%clk 0:01:48]}  c4 {[%clk 0:02:43]} 16. Qc1 {[%clk 0:01:34]}  cxb3 {[%clk 0:02:40]} 17. axb3 {[%clk 0:01:34]}  Bf5 {[%clk 0:02:39]} 18. c3 {[%clk 0:01:22]}  f6 {[%clk 0:02:31]} 19. Qxe3 {[%clk 0:01:22]}  fxe5 {[%clk 0:02:30]} 20. fxe5 {[%clk 0:01:22]}  Qh4 {[%clk 0:02:30]} 21. Nf4 {[%clk 0:01:18]}  Rae8 {[%clk 0:02:26]} 22. Nxd5 {[%clk 0:01:12]}  Bd8 {[%clk 0:02:26]} 23. Rf4 {[%clk 0:00:55]}  Qh6 {[%clk 0:02:22]} 24. Qf2 {[%clk 0:00:18]}  Be6 {[%clk 0:02:19]} 25. c4 {[%clk 0:00:07]}  Bxd5 {[%clk 0:02:17]} 26. Rxf8+ {[%clk 0:00:05]}  Rxf8 {[%clk 0:02:18]} 27. Qe2 {[%clk 0:00:05]}  Be6 {[%clk 0:02:13]} 28. d5 {[%clk 0:00:05]}  Bxh3 {[%clk 0:02:14]} 29. gxh3 {[%clk 0:00:05]}  Qxh3 {[%clk 0:02:14]} 30. Qg2 {[%clk 0:00:04]}  Qe3+ {[%clk 0:02:14]} 31. Kh2 {[%clk 0:00:03]}  Rf2 {[%clk 0:02:14]} 32. Rg1 {[%clk 0:00:02]}  Qf4+ {[%clk 0:02:13]} 33. Kh1 {[%clk 0:00:02]}  Qh4+ {[%clk 0:02:13]} 0-1


[Site "https://www.chess.com"]

[Event "Titled Tuesday Blitz April 19 Late 2022"]
[White "Petesch, Gabriel"]
[Black "Mitra, Roman C"]
[WhiteFideId "2032465"]
[BlackFideId "419540"]
[WhiteElo "2374"]
[BlackElo "2174"]
[Result "0-1"]
[Round "02"]
[TimeControl "180+1"]
[Date "2022.04.19"]
[WhiteClock "0:00:05"]
[BlackClock "0:01:41"]

1. Nf3 {[%clk 0:03:00]}  Nf6 {[%clk 0:02:59]} 2. c4 {[%clk 0:03:01]}  b6 {[%clk 0:02:55]} 3. Nc3 {[%clk 0:03:02]}  Bb7 {[%clk 0:02:55]} 4. b3 {[%clk 0:03:02]}  g6 {[%clk 0:02:54]} 5. Bb2 {[%clk 0:02:58]}  Bg7 {[%clk 0:02:54]} 6. e3 {[%clk 0:02:56]}  c5 {[%clk 0:02:54]} 7. Be2 {[%clk 0:02:52]}  O-O {[%clk 0:02:53]} 8. O-O {[%clk 0:02:51]}  d5 {[%clk 0:02:41]} 9. cxd5 {[%clk 0:02:51]}  Nxd5 {[%clk 0:02:42]} 10. d4 {[%clk 0:02:44]}  Nxc3 {[%clk 0:02:40]} 11. Bxc3 {[%clk 0:02:44]}  Nc6 {[%clk 0:02:40]} 12. Rc1 {[%clk 0:02:43]}  cxd4 {[%clk 0:02:38]} 13. Nxd4 {[%clk 0:02:41]}  Nxd4 {[%clk 0:02:37]} 14. exd4 {[%clk 0:02:40]}  Rc8 {[%clk 0:02:36]} 15. Qd2 {[%clk 0:02:40]}  e6 {[%clk 0:02:31]} 16. Bb4 {[%clk 0:02:35]}  Re8 {[%clk 0:02:29]} 17. Rxc8 {[%clk 0:02:27]}  Qxc8 {[%clk 0:02:30]} 18. Bb5 {[%clk 0:02:13]}  Rd8 {[%clk 0:02:29]} 19. Rc1 {[%clk 0:02:04]}  Qa8 {[%clk 0:02:29]} 20. Qg5 {[%clk 0:01:58]}  Rxd4 {[%clk 0:02:21]} 21. Bc4 {[%clk 0:01:31]}  b5 {[%clk 0:02:02]} 22. Qxb5 {[%clk 0:01:27]}  Bxg2 {[%clk 0:02:00]} 23. Qg5 {[%clk 0:00:56]}  Bh1 {[%clk 0:01:56]} 24. Ba6 {[%clk 0:00:18]}  Bh6 {[%clk 0:01:41]} 25. Rc8+ {[%clk 0:00:05]}  Qxc8 {[%clk 0:01:41]} 26. Bxc8 {[%clk 0:00:05]} 0-1


[Site "https://www.chess.com"]